{"text_format":"1","workbook":"xlsx","n_sheets":10,"sheets":["Oversikt","Oppsett","Anleggsliste","Testplan","Integrerte Tester","Beskrivelse","Matrise","Testprosedyre","Forklaring","Data"],"not_rendered":{"charts":9,"images":2,"macros":1,"external_links":0,"defined_names":3,"comments":2,"pivot_tables":0},"unopened":[],"bounds":{"document_bytes":16777216,"sheet_cells":100000,"rows_first":2000,"rows_last":500,"rows_between":2000,"halvings":0,"cell_chars":16384,"cell_head_chars":4096},"cells_cut":0,"cells_raw":0,"read":"whole","date_system":"1900"}

{"sheet":"Oversikt","index":0,"n_rows":5,"n_cols":20,"rows_kept":5,"cut":false,"hidden":false,"merged":[[4,19,4,22],[0,0,1,8],[0,19,0,22],[1,19,1,22],[3,19,3,22],[2,19,2,22]]}
["Prosjektoversikt",null,null,null,null,null,null,null,null,null,null,null,null,null,null,null,null,null,"25%","Rådgiver (overordnet)"]
[null,null,null,null,null,null,null,null,null,null,null,null,null,null,null,null,null,null,"50%","Entreprenør (Påbegynt, god i gang)"]
[null,null,null,null,null,null,null,null,null,null,null,null,null,null,null,null,null,null,"75%","Entreprenør (Tilnærmet ferdig)"]
[null,null,null,null,null,null,null,null,null,null,null,null,null,null,null,null,null,null,"90%","Klar for gjennomgang med kunde/bruker"]
[null,null,null,null,null,null,null,null,null,null,null,null,null,null,null,null,null,null,"100%","Godkjent av kunde"]

{"sheet":"Oppsett","index":1,"n_rows":151,"n_cols":8,"rows_kept":151,"cut":false,"hidden":false,"merged":[[1,7,2,7],[4,7,5,7],[12,7,13,7]]}
[null,null,null,null,null,null,null,"Instruksjoner til nye brukere:"]
[null,null,null,null,null,null,null,"Her er relevante systemer fra bygningsdelstaellen til Statsbygg (PA0802) lagt til i en tredelt liste."]
[]
[]
[null,null,null,null,null,null,null,"Knappen øverst til høyre (clear filters) i hver tabell, velger alle elementer."]
[]
[null,null,null,null,null,null,null,"Knappen til venstre for denne (multi select)  må være aktiv for at man skal kunne velge flere systemer. Denne burde derfor alltid være aktiv."]
[]
[]
[null,null,null,null,null,null,null,"Velg alle systemer som skal være med i prosjektet, og klikk deretter på \"Generer anleggsliste og beskrivelse\" øverst i arket for å gjøre tilsvarende."]
[]
[null,null,null,null,null,null,null,"Dersom det mangler et system er det enkelt å legge til flere:"]
[null,null,null,null,null,null,null,"1. Klikk på knappen øverst til høyre i alle tabeller (clear filter) for å sikre at alle rader er synlige i excel."]
[]
[null,null,null,null,null,null,null,"2. Bla ned til rad 29. Finn rikitig sted å sette inn nytt nummer i forhold til nummer i bygningsdeltabell."]
[null,null,null,null,null,null,null,"3. Høyreklikk på raden under ønsket plassering, og velg sett inn -> Hele raden. Det skal nå være en blank rad riktig plassert i forhold til nummerering "]
[null,null,null,null,null,null,null,"4. Fyll inn system på samme måte som er gjort tidligere i hver kolonne, for eksempel:"]
[null,null,null,null,null,null,null,"kolonne A: 2 - Bygning"]
[null,null,null,null,null,null,null,"kolonne B: 23 - Yttervegger"]
[null,null,null,null,null,null,null,"Kolonne C: 234 Vinduer, dører, porter"]
[]
[]
[]
[]
[]
[]
[]
["1 - Siffer","2 - Siffer","3 - Siffer"]
["2 - Bygning","23 - Yttervegger","234 Vinduer, dører, porter"]
["2 - Bygning","23 - Yttervegger","237 Solavskjermning"]
["2 - Bygning","24 - Innervegger","244 Vinduer, dører, foldevegger"]
["2 - Bygning","26 - Yttertak","263 Glasstak, overlys, takluker"]
["2 - Bygning","29 - Andre bygningsmessige deler","290 Andre bygningsmessige deler"]
["3 - VVS","31 - Sanitær","310 Sanitæranlegg"]
["3 - VVS","32 - Varme","320 Varmeanlegg"]
["3 - VVS","33 - Brannslukking","331 Installasjon for manuell brannslokking med vann"]
["3 - VVS","33 - Brannslukking","332 Installasjon for brannslokking med sprinkler"]
["3 - VVS","33 - Brannslukking","333 Installasjon for brannslokking med vanntåke"]
["3 - VVS","33 - Brannslukking","334 Installasjon for brannslokking med pulver"]
["3 - VVS","33 - Brannslukking","335 Installasjon for brannslokking med inertgass"]
["3 - VVS","33 - Brannslukking","339 Andre Installasjoner for brannslokking"]
["3 - VVS","34 - Gass og trykkluft","341 Installasjon til gass for bygningsdrift"]
["3 - VVS","34 - Gass og trykkluft","342 Installasjon til gass for virksomhet i ferdige bygg"]
["3 - VVS","34 - Gass og trykkluft","343 Installasjon til medisinske gasser"]
["3 - VVS","34 - Gass og trykkluft","345 Installasjon til trykkluft for virksomhet i ferdig bygg"]
["3 - VVS","34 - Gass og trykkluft","346 Installasjon til medisinsk trykkluft"]
["3 - VVS","34 - Gass og trykkluft","347 Vakuumsystemer"]
["3 - VVS","34 - Gass og trykkluft","349 Andre installasjoner til gass- og trykkluft"]
["3 - VVS","35 - Prosesskjøling","351 Kjøleromsystemer"]
["3 - VVS","35 - Prosesskjøling","352 Fryseromsystemer"]
["3 - VVS","35 - Prosesskjøling","353 Kjølesystemer for virksomhet"]
["3 - VVS","35 - Prosesskjøling","354 Kjølesystemer for produksjon"]
["3 - VVS","35 - Prosesskjøling","355 Kuldesystemer for innendørs idrettsbaner"]
["3 - VVS","35 - Prosesskjøling","359 Annen installasjon for kulde- og kjølesystemer"]
["3 - VVS","36 - Luftbehandling","360 Luftbehandling"]
["3 - VVS","37 - Komfortkjøling","370 Komfortkjøling"]
["3 - VVS","38 - Vannbehandling","381 Systemer for rensing av forbruksvann"]
["3 - VVS","38 - Vannbehandling","382 Systemer for rensing av aløpsvann"]
["3 - VVS","38 - Vannbehandling","383 Systemer for rensing av vann til svømmebasseng"]
["3 - VVS","38 - Vannbehandling","386 Innendørs fontener og springvann"]
["3 - VVS","38 - Vannbehandling","389 Annen vannbehandling"]
["3 - VVS","39 - Andre VVS-Installasjoner","390 Andre VVS-installasjoner"]
["4 - Elkraft","41 - Basisinstallasjoner for elkraft","412 Systemer for jording"]
["4 - Elkraft","41 - Basisinstallasjoner for elkraft","413 Systemer for lynvern"]
["4 - Elkraft","41 - Basisinstallasjoner for elkraft","419 Andre basisinstallasjoner for elkraft"]
["4 - Elkraft","43 - Lavspent forsyning","432 System for hovedfordeling"]
["4 - Elkraft","43 - Lavspent forsyning","433 Elkraftfordelingen til alminnelig forbruk"]
["4 - Elkraft","43 - Lavspent forsyning","434 Elkraftfordeling til driftstekniske installasjoner"]
["4 - Elkraft","43 - Lavspent forsyning","435 Elkraftfordeling til virksomhet"]
["4 - Elkraft","43 - Lavspent forsyning","439 Annen lavspent forsyning"]
["4 - Elkraft","44 - Lys","442 Belysningsutstyr"]
["4 - Elkraft","44 - Lys","443 Nødlysutstyr"]
["4 - Elkraft","44 - Lys","449 Andre deler for installasjoner til lys"]
["4 - Elkraft","45 - Elvarme","450 Elvarme"]
["4 - Elkraft","46 - Reservekraft","461 Elkraftaggregater"]
["4 - Elkraft","46 - Reservekraft","462 Avbruddsfri kraftforsyning"]
["4 - Elkraft","46 - Reservekraft","463 Akkumulatoranlegg"]
["4 - Elkraft","46 - Reservekraft","469 Andre deler for reservekraftforsyning"]
["4 - Elkraft","47 - Lokal kraftproduksjon","471 Solcellesystem"]
["4 - Elkraft","47 - Lokal kraftproduksjon","472 Vindmøllesystem"]
["4 - Elkraft","47 - Lokal kraftproduksjon","473 Kogenerering"]
["4 - Elkraft","49 - Andre elkraftinstallasjoner","490 Andre elkraftinstallasjoner"]
["5 - Tele og auto","51 - Basisinstallasjoner for tele og automatisering","512 Jording"]
["5 - Tele og auto","51 - Basisinstallasjoner for tele og automatisering","514 Inntakskabler for teleanlegg"]
["5 - Tele og auto","51 - Basisinstallasjoner for tele og automatisering","515 Telefordelinger"]
["5 - Tele og auto","51 - Basisinstallasjoner for tele og automatisering","519 Andre generelle anlegg for tele og automatisering"]
["5 - Tele og auto","52 - Integrert kommunikasjon","520 Integrert kommunikasjon"]
["5 - Tele og auto","52 - Integrert kommunikasjon","529 Spredenett for eiendomsdrift"]
["5 - Tele og auto","53 - Telefoni og personøking","532 Systemer for telefoni"]
["5 - Tele og auto","53 - Telefoni og personøking","534 Systemer for porttelefoner"]
["5 - Tele og auto","53 - Telefoni og personøking","535 Systemer for høyttalende hustelefoner"]
["5 - Tele og auto","53 - Telefoni og personøking","536 Systemer for personsøkning"]
["5 - Tele og auto","53 - Telefoni og personøking","539 Andre installasjoner for telefoni og personsøkning"]
["5 - Tele og auto","54 - Alarm- og signalsystemer","542 Brannalarm"]
["5 - Tele og auto","54 - Alarm- og signalsystemer","543 Adgangskontroll, innbrudds- og overfallsalarm"]
["5 - Tele og auto","54 - Alarm- og signalsystemer","544 Pasientsignal"]
["5 - Tele og auto","54 - Alarm- og signalsystemer","545 Uranlegg og tidsregistering"]
["5 - Tele og auto","54 - Alarm- og signalsystemer","547 Dørsystem"]
["5 - Tele og auto","54 - Alarm- og signalsystemer","549 Andre installasjoner for alarm og signal"]
["5 - Tele og auto","55 - Lyd- og bildesystemer","552 Fellesantenne"]
["5 - Tele og auto","55 - Lyd- og bildesystemer","553 Internfjernsyn"]
["5 - Tele og auto","55 - Lyd- og bildesystemer","554 Lyddistribusjonsanlegg"]
["5 - Tele og auto","55 - Lyd- og bildesystemer","555 Lydanlegg"]
["5 - Tele og auto","55 - Lyd- og bildesystemer","556 Bilde og AV-utstyr"]
["5 - Tele og auto","55 - Lyd- og bildesystemer","559 Annen installasjon for lyd og bilde"]
["5 - Tele og auto","56 - Automatisering","562 Sentral driftskontroll og automatisering"]
["5 - Tele og auto","56 - Automatisering","563 Lokal automatisering"]
["5 - Tele og auto","56 - Automatisering","564 Buss-systemer"]
["5 - Tele og auto","56 - Automatisering","565 FDVUS: Administrativt system"]
["5 - Tele og auto","56 - Automatisering","569 Andre installasjoner for automatisering"]
["5 - Tele og auto","57 - Instrumentering","570 Instrumentering"]
["5 - Tele og auto","59 - Andre installasjoner for tele og automatisering","590 Andre installasjoner for tele og automatisering"]
["6 - Andre installasjoner","62 - Person- og varetransport","621 Heiser"]
["6 - Andre installasjoner","62 - Person- og varetransport","622 Rulletrapper"]
["6 - Andre installasjoner","62 - Person- og varetransport","623 Rullebånd"]
["6 - Andre installasjoner","62 - Person- og varetransport","624 Løftebord"]
["6 - Andre installasjoner","62 - Person- og varetransport","625 Trappeheiser"]
["6 - Andre installasjoner","62 - Person- og varetransport","626 Kraner"]
["6 - Andre installasjoner","62 - Person- og varetransport","627 Fasade- og takvask"]
["6 - Andre installasjoner","62 - Person- og varetransport","629 Annen person- og varetransport"]
["6 - Andre installasjoner","63 - Transportanlegg for småvarer m.v.","631 Dokument og småvaretransportører"]
["6 - Andre installasjoner","63 - Transportanlegg for småvarer m.v.","632 Transportanlegg for tørr og løs masse"]
["6 - Andre installasjoner","63 - Transportanlegg for småvarer m.v.","639 Andre anlegg for transport for småvarer m.v."]
["6 - Andre installasjoner","64 - Sceneteknisk utstyr","640 Sceneteknisk utstyr"]
["6 - Andre installasjoner","65 - Avfall og støvsuging","651 Utstyr for oppsamling og behandling av avfall"]
["6 - Andre installasjoner","65 - Avfall og støvsuging","652 Sentralstøvsuger"]
["6 - Andre installasjoner","65 - Avfall og støvsuging","653 Pneumatisk søppeltransport"]
["6 - Andre installasjoner","65 - Avfall og støvsuging","659 Andre installasjoner for avfall og støvsuging"]
["6 - Andre installasjoner","66 - Fastmontert spesialutrustning for virksomhet","660 Fastmontert spesialutrustning for virksomhet"]
["6 - Andre installasjoner","67 - Løs spesialutrustning for virksomhet","670 Løs spesialutrustning for virksomhet"]
["6 - Andre installasjoner","69 - Andre tekniske installasjoner","690 Andre tekisnke installasjoner"]
["7 - Utendørs","73 - Utendørsanlegg","731 Underdørs VA"]
["7 - Utendørs","73 - Utendørsanlegg","732 Utendørs varme"]
["7 - Utendørs","73 - Utendørsanlegg","733 Utendørs brannslokking"]
["7 - Utendørs","73 - Utendørsanlegg","734 Utendørs gassinstallasjon"]
["7 - Utendørs","73 - Utendørsanlegg","735 Utendørs kjøing for idrettsbaner"]
["7 - Utendørs","73 - Utendørsanlegg","736 Utendørs luftbehandlingsanlegg"]
["7 - Utendørs","73 - Utendørsanlegg","737 Utendørs forsyningsanlegg for termisk energi"]
["7 - Utendørs","73 - Utendørsanlegg","738 Utendørs fontener og springvann"]
["7 - Utendørs","73 - Utendørsanlegg","739 Annen utendørs VVS"]
["7 - Utendørs","74 - Utendørs elkraft","743 Utendørs lavspent forsyning"]
["7 - Utendørs","74 - Utendørs elkraft","744 Utendørs lys"]
["7 - Utendørs","74 - Utendørs elkraft","745 Utendørs elvarme"]
["7 - Utendørs","74 - Utendørs elkraft","746 Utendørs reservekraft"]
["7 - Utendørs","74 - Utendørs elkraft","749 Annen utendørs elkraft"]
["7 - Utendørs","75 Utendørs tele og automatisering ","752 Utendørs integrert kommunikasjon"]
["7 - Utendørs","75 Utendørs tele og automatisering ","753 Utendørs telefoni og personsøking"]
["7 - Utendørs","75 Utendørs tele og automatisering ","754 Utendørs alarm og signal"]
["7 - Utendørs","75 Utendørs tele og automatisering ","755 Utendørs lyd og bilde"]
["7 - Utendørs","75 Utendørs tele og automatisering ","756 Utendørs automatisering"]
["7 - Utendørs","75 Utendørs tele og automatisering ","759 Andre installasjoner for utendørs tele og automatisering"]

{"sheet":"Anleggsliste","index":2,"n_rows":16,"n_cols":12,"rows_kept":16,"cut":false,"hidden":false,"merged":[[3,6,6,8],[2,6,2,8],[6,0,6,5],[0,6,1,8],[0,1,0,2],[1,1,1,2],[2,1,2,2],[1,4,2,4],[4,4,5,4],[1,5,2,5],[4,5,5,5],[3,1,3,2],[4,1,4,2],[5,1,5,2],[1,3,2,3],[4,3,5,3]]}
["Oppdrag","Oppdragsnavn",null,"Utarbeidet av:","Kontrollert av:","Godkjent av:","Klikk på raden til et systemnummer, og deretter på \"Sett inn løpenr.\" knappen for å sette inn løpenr. tilhørende system. Denne knappen legger til en ny rad under gjeldende rad med verdi +1."]
["Oppdragsnr.","Oppdrag1",null,"MA","MA","MA"]
["Dokumentnavn","Dokument1",null,null,null,null,"Bruk x eller X for å markere som fullført"]
["Dokumentnr.","12345",null,"Dato:","Dato:","Dato:","I funksjonsbeskrivelse kan man bruke heltall for å definere progresjon. Hold over tittelfelt for nærmere beskrivelse.\nBruk 100, x eller X for å markere som fullført/godkjent."]
["Dato","2021-04-06",null,"2021-04-28","2021-04-28","2021-04-28"]
["Revisjon","Rev99"]
["Dokumentinformasjon over bør fylles inn her i anleggsliste. Da fylles resterende ark automatisk"]
[]
[]
[null,null,null,null,null,null,null,"Mekanisk ferdigstillelse\n(MC)","Funksjonstest,\n Egentest","Integrasjonstest","Fullskalatest:\nSikkerhet","Fullskalatest:\nTeknikk"]
["Systemnr.","Systemnavn","Systemeier","Skjema","Tegninger","Topologi","Funksjonsbeskrivelse \n(i %)",null,"Iht. systemets testrutine","Iht. prosjektets krav","Test av brann- og rømningssikkerhet","F.eks. Ved automatisk oppstart/nettutfall"]
[234,"Vinduer, dører, porter"]
[237,"Solavskjermning"]
[244,"Vinduer, dører, foldevegger"]
[263,"Glasstak, overlys, takluker"]
[290,"Andre bygningsmessige deler"]

{"sheet":"Testplan","index":3,"n_rows":16,"n_cols":24,"rows_kept":16,"cut":false,"hidden":false,"merged":[[7,15,8,23],[9,21,9,23],[9,9,9,11],[9,12,9,14],[9,15,9,17],[9,18,9,20],[7,9,8,14],[3,1,3,2],[4,1,4,2],[5,1,5,2],[9,3,9,5],[9,6,9,8],[4,3,5,3],[4,4,5,4],[4,5,5,5],[7,3,8,8],[1,6,1,8],[2,6,2,8],[0,6,0,8],[0,1,0,2],[1,1,1,2],[2,1,2,2],[1,3,2,3],[1,4,2,4],[1,5,2,5]]}
[{"$f":"Anleggsliste!A1","v":"Oppdrag"},{"$f":"Anleggsliste!B1","v":"Oppdragsnavn"},null,{"$f":"Anleggsliste!D1","v":"Utarbeidet av:"},{"$f":"Anleggsliste!E1","v":"Kontrollert av:"},{"$f":"Anleggsliste!F1","v":"Godkjent av:"},"En fremdriftstabell for ulike faser"]
[{"$f":"Anleggsliste!A2","v":"Oppdragsnr."},{"$f":"Anleggsliste!B2","v":"Oppdrag1"},null,{"$f":"Anleggsliste!D2","v":"MA"},{"$f":"Anleggsliste!E2","v":"MA"},{"$f":"Anleggsliste!F2","v":"MA"},"Fyll inn med dato i følgende format:"]
[{"$f":"Anleggsliste!A3","v":"Dokumentnavn"},{"$f":"Anleggsliste!B3","v":"Dokument1"},null,null,null,null,"\"dd-mm-yy\" for eksempel 01-12-21"]
[{"$f":"Anleggsliste!A4","v":"Dokumentnr."},{"$f":"Anleggsliste!B4","v":"12345"},null,{"$f":"Anleggsliste!D4","v":"Dato:"},{"$f":"Anleggsliste!E4","v":"Dato:"},{"$f":"Anleggsliste!F4","v":"Dato:"}]
[{"$f":"Anleggsliste!A5","v":"Dato"},{"$f":"Anleggsliste!B5","v":"2021-04-06"},null,{"$f":"Anleggsliste!D5","v":"2021-04-28"},{"$f":"Anleggsliste!E5","v":"2021-04-28"},{"$f":"Anleggsliste!F5","v":"2021-04-28"}]
[{"$f":"Anleggsliste!A6","v":"Revisjon"},{"$f":"Anleggsliste!B6","v":"Rev99"}]
[]
[null,null,null,"Installasjonfase",null,null,null,null,null,"Igangkjøringsfase",null,null,null,null,null,"Idriftsettelsesfase"]
[]
[null,null,null,"Montering og bygging",null,null,"Mekanisk ferdigstillelse ",null,null,"Innregulering ",null,null,"Egentester ",null,null,"Integrert-test ",null,null,"Fullskalatest: \n-Sikkerhet",null,null,"Fullskalatest:\n-Teknikk"]
["Systemnr.","Systemnavn","Systemeier","Påbegynt","Planlagt ferdig","Ferdigstilt","Påbegynt","Planlagt ferdig","Ferdigstilt","Påbegynt","Planlagt ferdig","Ferdigstilt","Påbegynt","Planlagt ferdig","Ferdigstilt","Påbegynt","Planlagt ferdig","Ferdigstilt","Påbegynt","Planlagt ferdig","Ferdigstilt","Påbegynt","Planlagt ferdig","Ferdigstilt"]
[234,"Vinduer, dører, porter"]
[237,"Solavskjermning"]
[244,"Vinduer, dører, foldevegger"]
[263,"Glasstak, overlys, takluker"]
[290,"Andre bygningsmessige deler"]

{"sheet":"Integrerte Tester","index":4,"n_rows":21,"n_cols":13,"rows_kept":21,"cut":false,"hidden":false,"merged":[[13,0,13,12],[15,0,15,12],[17,0,17,12],[19,0,19,12],[3,1,3,2],[4,1,4,2],[4,7,5,8],[11,0,11,12],[4,5,5,6],[3,3,3,4],[9,3,9,7],[0,5,0,6],[1,5,2,6],[3,5,3,6],[0,7,0,8],[1,7,2,8],[3,7,3,8],[0,3,0,4],[1,3,2,4],[4,3,5,4],[5,1,5,2],[0,1,0,2],[1,1,1,2],[2,1,2,2]]}
[{"$f":"Anleggsliste!A1","v":"Oppdrag"},{"$f":"Anleggsliste!B1","v":"Oppdragsnavn"},null,{"$f":"Anleggsliste!D1","v":"Utarbeidet av:"},null,{"$f":"Anleggsliste!E1","v":"Kontrollert av:"},null,{"$f":"Anleggsliste!F1","v":"Godkjent av:"}]
[{"$f":"Anleggsliste!A2","v":"Oppdragsnr."},{"$f":"Anleggsliste!B2","v":"Oppdrag1"},null,{"$f":"Anleggsliste!D2","v":"MA"},null,{"$f":"Anleggsliste!E2","v":"MA"},null,{"$f":"Anleggsliste!F2","v":"MA"}]
[{"$f":"Anleggsliste!A3","v":"Dokumentnavn"},{"$f":"Anleggsliste!B3","v":"Dokument1"}]
[{"$f":"Anleggsliste!A4","v":"Dokumentnr."},{"$f":"Anleggsliste!B4","v":"12345"},null,{"$f":"Anleggsliste!D4","v":"Dato:"},null,{"$f":"Anleggsliste!E4","v":"Dato:"},null,{"$f":"Anleggsliste!F4","v":"Dato:"}]
[{"$f":"Anleggsliste!A5","v":"Dato"},{"$f":"Anleggsliste!B5","v":"2021-04-06"},null,{"$f":"Anleggsliste!D5","v":"2021-04-28"},null,{"$f":"Anleggsliste!E5","v":"2021-04-28"},null,{"$f":"Anleggsliste!F5","v":"2021-04-28"}]
[{"$f":"Anleggsliste!A6","v":"Revisjon"},{"$f":"Anleggsliste!B6","v":"Rev99"}]
[]
[]
[]
[null,null,null,"Ansvarsfordeling"]
["Systemnr.","Tverrfaglig grensesnitt","Kravspesifikasjon","Levering","Montering","Kabling,\ntilkobling","Funksjonsansvar","Tverrfaglig funksjonsansvar","Testdato","Kommentar,\nUtbedrelser","Test OK","Dato for\n godkjent","Hovedgrense-\nsnitt"]
["234.001 - Løpenummer eksempel1"]
[234.001]
["234.002 - Løpenummer eksempel2"]
[234.00200000000001]
["234.003 - Løpenummer eksempel3"]
[234.00299999999999]
["290.004 - Løpenummer eksempel4"]
[290.00400000000002]
["290.008 - Løpenummer eksempel8"]
[290.00799999999998]

{"sheet":"Beskrivelse","index":5,"n_rows":16,"n_cols":17,"rows_kept":16,"cut":false,"hidden":false,"merged":[[0,1,0,2],[1,1,1,2],[2,1,2,2],[1,3,2,3],[1,4,2,4],[9,12,9,16],[9,6,9,11],[1,5,2,5],[4,5,5,5],[3,1,3,2],[4,1,4,2],[5,1,5,2],[4,3,5,3],[4,4,5,4]]}
[{"$f":"Anleggsliste!A1","v":"Oppdrag"},{"$f":"Anleggsliste!B1","v":"Oppdragsnavn"},null,{"$f":"Anleggsliste!D1","v":"Utarbeidet av:"},{"$f":"Anleggsliste!E1","v":"Kontrollert av:"},{"$f":"Anleggsliste!F1","v":"Godkjent av:"}]
[{"$f":"Anleggsliste!A2","v":"Oppdragsnr."},{"$f":"Anleggsliste!B2","v":"Oppdrag1"},null,{"$f":"Anleggsliste!D2","v":"MA"},{"$f":"Anleggsliste!E2","v":"MA"},{"$f":"Anleggsliste!F2","v":"MA"}]
[{"$f":"Anleggsliste!A3","v":"Dokumentnavn"},{"$f":"Anleggsliste!B3","v":"Dokument1"}]
[{"$f":"Anleggsliste!A4","v":"Dokumentnr."},{"$f":"Anleggsliste!B4","v":"12345"},null,{"$f":"Anleggsliste!D4","v":"Dato:"},{"$f":"Anleggsliste!E4","v":"Dato:"},{"$f":"Anleggsliste!F4","v":"Dato:"}]
[{"$f":"Anleggsliste!A5","v":"Dato"},{"$f":"Anleggsliste!B5","v":"2021-04-06"},null,{"$f":"Anleggsliste!D5","v":"2021-04-28"},{"$f":"Anleggsliste!E5","v":"2021-04-28"},{"$f":"Anleggsliste!F5","v":"2021-04-28"}]
[{"$f":"Anleggsliste!A6","v":"Revisjon"},{"$f":"Anleggsliste!B6","v":"Rev99"}]
[]
[]
[]
[null,null,null,null,null,null,"Kommunikasjonsmetoder",null,null,null,null,null,"Ansvarsfordeling"]
["Ref. nr.","Systemnummer","Systemnavn","Beskrivelse grensesnitt","Systemvis funksjonsbeskrivelse","Potensialfri","Analog inn","Analog ut","Digital inn","Digital ut","Puls","Busskommunikasjon","Levaranse","Montasje","Tilkopling","Funksjonsansvar","Tverfaglig funksjonsansvar"]
[null,234,"Vinduer, dører, porter"]
[null,237,"Solavskjermning"]
[null,244,"Vinduer, dører, foldevegger"]
[null,263,"Glasstak, overlys, takluker"]
[null,290,"Andre bygningsmessige deler"]

{"sheet":"Matrise","index":6,"n_rows":17,"n_cols":16,"rows_kept":17,"cut":false,"hidden":false,"merged":[[3,1,3,2],[4,1,4,2],[5,1,5,2],[0,3,0,8],[0,1,0,2],[1,1,1,2],[2,1,2,2],[1,3,2,8],[3,15,3,20],[4,15,5,20],[3,3,3,8],[4,3,5,8],[0,9,0,14],[1,9,2,14],[3,9,3,14],[4,9,5,14],[0,15,0,20],[1,15,2,20]]}
[{"$f":"Anleggsliste!A1","v":"Oppdrag"},{"$f":"Anleggsliste!B1","v":"Oppdragsnavn"},null,{"$f":"Anleggsliste!D1","v":"Utarbeidet av:"},null,null,null,null,null,{"$f":"Anleggsliste!E1","v":"Kontrollert av:"},null,null,null,null,null,{"$f":"Anleggsliste!F1","v":"Godkjent av:"}]
[{"$f":"Anleggsliste!A2","v":"Oppdragsnr."},{"$f":"Anleggsliste!B2","v":"Oppdrag1"},null,{"$f":"Anleggsliste!D2","v":"MA"},null,null,null,null,null,{"$f":"Anleggsliste!E2","v":"MA"},null,null,null,null,null,{"$f":"Anleggsliste!F2","v":"MA"}]
[{"$f":"Anleggsliste!A3","v":"Dokumentnavn"},{"$f":"Anleggsliste!B3","v":"Dokument1"}]
[{"$f":"Anleggsliste!A4","v":"Dokumentnr."},{"$f":"Anleggsliste!B4","v":"12345"},null,{"$f":"Anleggsliste!D4","v":"Dato:"},null,null,null,null,null,{"$f":"Anleggsliste!E4","v":"Dato:"},null,null,null,null,null,{"$f":"Anleggsliste!F4","v":"Dato:"}]
[{"$f":"Anleggsliste!A5","v":"Dato"},{"$f":"Anleggsliste!B5","v":"2021-04-06"},null,{"$f":"Anleggsliste!D5","v":"2021-04-28"},null,null,null,null,null,{"$f":"Anleggsliste!E5","v":"2021-04-28"},null,null,null,null,null,{"$f":"Anleggsliste!F5","v":"2021-04-28"}]
[{"$f":"Anleggsliste!A6","v":"Revisjon"},{"$f":"Anleggsliste!B6","v":"Rev99"}]
[]
[]
[]
[]
[null,null,"Vinduer, dører, porter","Solavskjermning","Vinduer, dører, foldevegger","Glasstak, overlys, takluker","Andre bygningsmessige deler"]
[null,null,234,237,244,263,290]
[234,"Vinduer, dører, porter"]
[237,"Solavskjermning"]
[244,"Vinduer, dører, foldevegger"]
[263,"Glasstak, overlys, takluker"]
[290,"Andre bygningsmessige deler"]

{"sheet":"Testprosedyre","index":7,"n_rows":11,"n_cols":15,"rows_kept":11,"cut":false,"hidden":false,"merged":[[0,1,0,2],[1,1,1,2],[1,3,2,3],[1,4,2,4],[1,5,2,5],[2,1,2,2],[3,1,3,2],[4,1,4,2],[4,3,5,3],[4,4,5,4],[4,5,5,5],[5,1,5,2]]}
[{"$f":"Anleggsliste!A1","v":"Oppdrag"},{"$f":"Anleggsliste!B1","v":"Oppdragsnavn"},null,{"$f":"Anleggsliste!D1","v":"Utarbeidet av:"},{"$f":"Anleggsliste!E1","v":"Kontrollert av:"},{"$f":"Anleggsliste!F1","v":"Godkjent av:"}]
[{"$f":"Anleggsliste!A2","v":"Oppdragsnr."},{"$f":"Anleggsliste!B2","v":"Oppdrag1"},null,{"$f":"Anleggsliste!D2","v":"MA"},{"$f":"Anleggsliste!E2","v":"MA"},{"$f":"Anleggsliste!F2","v":"MA"}]
[{"$f":"Anleggsliste!A3","v":"Dokumentnavn"},{"$f":"Anleggsliste!B3","v":"Dokument1"}]
[{"$f":"Anleggsliste!A4","v":"Dokumentnr."},{"$f":"Anleggsliste!B4","v":"12345"},null,{"$f":"Anleggsliste!D4","v":"Dato:"},{"$f":"Anleggsliste!E4","v":"Dato:"},{"$f":"Anleggsliste!F4","v":"Dato:"}]
[{"$f":"Anleggsliste!A5","v":"Dato"},{"$f":"Anleggsliste!B5","v":"2021-04-06"},null,{"$f":"Anleggsliste!D5","v":"2021-04-28"},{"$f":"Anleggsliste!E5","v":"2021-04-28"},{"$f":"Anleggsliste!F5","v":"2021-04-28"}]
[{"$f":"Anleggsliste!A6","v":"Revisjon"},{"$f":"Anleggsliste!B6","v":"Rev99"}]
[]
[]
[]
[]
["Test ID","System","Mot grensesnitt","Testnavn","Deltaker 1","Deltaker 2","Dokumenter for test OK","Forutsetninger for test, evt. utstyr","Ansvarlig for test","Testdato","Test-rapport OK","Feil og avvik","Status for test","Ansvarlig for utbedring","Dato fullført utbedring"]

{"sheet":"Forklaring","index":8,"n_rows":22,"n_cols":8,"rows_kept":22,"cut":false,"hidden":false,"merged":[]}
["Statsbygg:",null,null,null,null,null,"Asplan Viak:"]
["Aktør","Fagkode",null,null,null,null,"Aktør","Fagkode"]
["Ariktekt","A",null,null,null,null,"Totalentreprenør","TE"]
["Byggeteknikk","B",null,null,null,null,"Ventilasjon","V"]
["Akustikk","C",null,null,null,null,"Rør","R"]
["Andre inst.","D",null,null,null,null,"Elektriker","E"]
["Elektro","E",null,null,null,null,"SD-anlegg","SD"]
["Brann","F",null,null,null,null,"Bygg","B"]
["Geoteknikk og grunnarbeider","G",null,null,null,null,"Brannalarm","C"]
["Heis","H",null,null,null,null,"Adgangskontroll- og innbruddsentral","A"]
["Interiørarkitekt","I",null,null,null,null,"Heis","H"]
["Andre konsulenter (Kulisser, teater, medisinsk virksomhet, etc.)","K",null,null,null,null,"Kjøling","K"]
["Landskap, terreng","L",null,null,null,null,"Dørautomatikk","D"]
["Maskin","M",null,null,null,null,"Uteanlegg","U"]
["Prosess","P"]
["Storkjøkken","S"]
["Tele- og automatisering","T"]
["Utsmykning","U"]
["VVS","V"]
["Vei, trafikk","W"]
["Utarbeidet av entreprenør/leverandør","Y"]
["Utarbeidet av offentlig myndighet","Z"]

{"sheet":"Data","index":9,"n_rows":26,"n_cols":7,"rows_kept":26,"cut":false,"hidden":true,"merged":[]}
["Data for anleggsliste",null,null,null,null,"Mekanisk ferdigstillelse"]
["Totale systemnummer",{"$f":"COUNTIF(Anleggsliste!$A$12:A10020,\"<>\")","v":5},null,null,null,"Fullført",{"$f":"COUNTIF(Anleggsliste!$H$12:H10020, \"x\")/B2","v":0}]
[null,null,null,null,null,"Mangler",{"$f":"100%-G2","v":1}]
["Fullførte skjema",{"$f":"COUNTIF(Anleggsliste!$D$12:D10020, \"x\")/B2","v":0}]
["Mangler",{"$f":"100%-B4","v":1},null,null,null,"Funksjonstest"]
[null,null,null,null,null,"Fullført",{"$f":"COUNTIF(Anleggsliste!$I$12:I10020, \"x\")/B2","v":0}]
["Fullførte tegninger",{"$f":"COUNTIF(Anleggsliste!$E$12:E10020, \"x\")/B2","v":0},null,null,null,"Mangler",{"$f":"100%-G6","v":1}]
["Mangler",{"$f":"100%-B7","v":1}]
[null,null,null,null,null,"Integrasjonstest"]
["Fullførte topologi",{"$f":"COUNTIF(Anleggsliste!$F$12:F10020, \"x\")/B2","v":0},null,null,null,"Fullført",{"$f":"COUNTIF(Anleggsliste!$J$12:J10020, \"x\")/B2","v":0}]
["Mangler",{"$f":"100%-B10","v":1},null,null,null,"Mangler",{"$f":"100%-G10","v":1}]
[]
[null,null,null,null,null,"Fullskalatest1"]
["Funksjonstest:",null,null,null,null,"Fullført",{"$f":"COUNTIF(Anleggsliste!$K$12:K10020, \"x\")/B2","v":0}]
["Større enn 0 og mindre enn 26",{"$f":"COUNTIFS(Anleggsliste!G12:G10020,\">0\",Anleggsliste!G12:G10020,\"<26\")","v":0},null,null,null,"Mangler",{"$f":"100%-G14","v":1}]
["Større enn 25 og mindre enn 51",{"$f":"COUNTIFS(Anleggsliste!G12:G10020,\">25\",Anleggsliste!G12:G10020,\"<51\")","v":0}]
["Større enn 50 og mindre enn 76",{"$f":"COUNTIFS(Anleggsliste!G12:G10020,\">50\",Anleggsliste!G12:G10020,\"<76\")","v":0},null,null,null,"Fullskalatest2"]
["Større enn 75 og mindre enn 99",{"$f":"COUNTIFS(Anleggsliste!G12:G10020,\">75\",Anleggsliste!G12:G10020,\"<100\")","v":0},null,null,null,"Fullført",{"$f":"COUNTIF(Anleggsliste!$L$12:L10020, \"x\")/B2","v":0}]
["er lik 100 eller x",{"$f":"COUNTIF(Anleggsliste!G12:G10020,\"=100\") + COUNTIF(Anleggsliste!G12:G10020,\"=x\")","v":0},null,null,null,"Mangler",{"$f":"100%-G18","v":1}]
["Prosentvis:"]
["Ikke angitt",{"$f":"(B2-B15-B16-B17-B18-B19)/B2","v":1}]
["25%",{"$f":"B15/B2","v":0}]
["50%",{"$f":"B16/B2","v":0}]
["75%",{"$f":"B17/B2","v":0}]
["90%",{"$f":"B18/B2","v":0}]
["100%",{"$f":"B19/B2","v":0}]